bitfinex-derivatives/quotes_BTCF0:USTF0_20250129
["timestamp","ask_amount","ask_price","bid_price","bid_amount"]
[1738175087302,0.3774,102300.0,102290.0,0.34733785]
[1738175087502,0.3774,102300.0,102290.0,0.34833785]
[1738175087908,0.933732,102300.0,102290.0,0.29833785]
[1738175088304,0.933732,102300.0,102290.0,0.29733785]
[1738175088505,0.933732,102300.0,102290.0,0.29933785]
[1738175088904,0.933732,102300.0,102290.0,0.20764252]
[1738175089207,0.933732,102300.0,102290.0,0.21164252]
[1738175089696,0.933732,102300.0,102290.0,0.30333785]
[1738175090303,0.933732,102300.0,102290.0,0.30233785]
[1738175090710,0.933732,102300.0,102290.0,0.29833785]
[1738175093815,0.933732,102300.0,102290.0,0.29733785]
[1738175094015,0.933732,102300.0,102290.0,0.29833785]
[1738175097812,0.933732,102300.0,102290.0,0.09269533]
[1738175098116,0.933732,102300.0,102290.0,0.001]
[1738175098703,0.933732,102300.0,102290.0,0.196551]
[1738175099722,1.02542733,102300.0,102280.0,0.00014685]
[1738175100021,0.3608,102290.0,102280.0,0.05]
[1738175100206,0.572936,102300.0,102290.0,0.195551]
[1738175100514,0.573936,102300.0,102290.0,0.195551]
[1738175100811,0.74793856,102300.0,102290.0,0.195551]
[1738175101010,0.74693856,102300.0,102290.0,0.28724633]
[1738175102013,1.10773856,102300.0,102290.0,0.09269533]
[1738175102215,1.10773856,102300.0,102290.0,0.001]
[1738175103111,1.10773856,102300.0,102290.0,0.28824633]
[1738175103308,0.74693856,102300.0,102290.0,0.28824633]
[1738175103811,0.74693856,102300.0,102290.0,0.32724633]
[1738175103812,0.82340256,102300.0,102290.0,0.32724633]
[1738175104006,0.46260256,102300.0,102290.0,0.68804633]
[1738175104216,0.27400256,102300.0,102290.0,0.77914633]
[1738175104519,0.27400256,102300.0,102290.0,0.87104633]
[1738175105306,0.27400256,102300.0,102290.0,0.96274166]
[1738175105508,0.27400256,102300.0,102290.0,1.05194166]
[1738175106508,0.27400256,102300.0,102290.0,1.05494166]
[1738175107116,0.1,102300.0,102290.0,1.05494166]
[1738175108212,0.1,102300.0,102290.0,1.06502147]
[1738175108424,0.1456632,102310.0,102290.0,0.86947047]
[1738175108720,0.1456632,102310.0,102300.0,0.73972266]
[1738175108914,0.1456632,102310.0,102300.0,0.85972266]
[1738175110723,0.14159929,102320.0,102310.0,0.195513]
[1738175111022,0.20300299,102340.0,102320.0,0.048872]
[1738175111228,0.20300299,102340.0,102330.0,1.28686566]
[1738175111418,0.20300299,102340.0,102330.0,1.48686566]
[1738175112014,0.10841287,102340.0,102330.0,1.48686566]
[1738175112218,0.10841287,102340.0,102330.0,1.54822566]
[1738175112717,1.10315719,102350.0,102340.0,0.195456]
[1738175112922,1.10315719,102350.0,102340.0,0.94524666]
[1738175113319,0.23453043,102360.0,102350.0,0.195437]
[1738175113510,0.27123281,102380.0,102350.0,0.74419066]
[1738175113717,0.1906,102400.0,102390.0,0.19536]
[1738175113917,0.1906,102400.0,102390.0,0.73955066]
[1738175114321,0.1906,102400.0,102390.0,0.28705533]
[1738175114627,0.1906,102400.0,102390.0,0.73955066]
[1738175114819,0.1906,102400.0,102390.0,0.64785533]
[1738175115419,0.1946,102400.0,102390.0,0.64785533]
[1738175116024,0.1946,102400.0,102390.0,0.64885533]
[1738175116226,0.389941,102400.0,102390.0,0.09269533]
[1738175116529,0.750741,102400.0,102390.0,0.09269533]
[1738175116827,0.750741,102400.0,102390.0,0.001]
[1738175123319,0.750741,102400.0,102390.0,0.09269533]
[1738175124037,0.750741,102400.0,102390.0,0.28805533]
[1738175124734,0.750741,102400.0,102390.0,0.41975066]
[1738175124928,0.5554,102400.0,102390.0,0.32805533]
[1738175125235,0.5554,102400.0,102390.0,0.41975066]
[1738175125436,0.1946,102400.0,102390.0,0.32786391]
[1738175126033,0.5554,102400.0,102390.0,0.32786391]
[1738175126229,0.1946,102400.0,102390.0,0.32786391]
[1738175126733,0.5554,102400.0,102390.0,0.32786391]
[1738175127238,0.1946,102400.0,102390.0,0.32786391]
[1738175127832,0.389941,102400.0,102390.0,0.32786391]
[1738175128529,0.389941,102400.0,102390.0,0.41955924]
[1738175128730,0.1946,102400.0,102390.0,0.78035924]
[1738175128934,0.1946,102400.0,102390.0,0.79028268]
[1738175129730,0.104,102400.0,102390.0,0.79028268]
[1738175129936,0.18354685,102410.0,102400.0,0.195341]
[1738175129937,0.00014685,102410.0,102400.0,0.195341]
[1738175130133,0.00014685,102410.0,102400.0,0.84783633]
[1738175131029,0.00214685,102410.0,102400.0,0.84783633]
[1738175133843,0.00987172,102430.0,102400.0,0.74419066]
[1738175134144,0.641869,102440.0,102420.0,0.73949366]
[1738175134335,0.641869,102440.0,102430.0,0.09169533]
[1738175136442,0.641869,102440.0,102430.0,0.28697933]
[1738175136646,0.644869,102440.0,102430.0,0.28797933]
[1738175139151,0.284069,102440.0,102430.0,0.28797933]
[1738175140049,0.644869,102440.0,102430.0,0.28797933]
[1738175140548,0.644869,102440.0,102430.0,0.196284]
[1738175140749,0.644869,102440.0,102430.0,0.001]
[1738175141949,0.644869,102440.0,102430.0,0.196284]
[1738175143645,0.73656433,102440.0,102430.0,0.001]
[1738175144044,0.644869,102440.0,102430.0,0.001]
[1738175145650,0.73656433,102440.0,102430.0,0.001]
[1738175147254,0.54129533,102440.0,102420.0,0.00014685]
[1738175147468,0.64777933,102430.0,102420.0,0.00014685]
[1738175147755,0.64777933,102430.0,102400.0,0.69635332]
[1738175147756,0.195322,102410.0,102400.0,0.69635332]
[1738175147959,0.556122,102410.0,102400.0,0.69635332]
[1738175149058,0.556122,102410.0,102400.0,0.70640083]
[1738175149252,0.556122,102410.0,102400.0,0.47333493]
[1738175149560,1.16212633,102410.0,102390.0,0.23321275]
[1738175149855,1.16212633,102410.0,102380.0,0.64093123]
[1738175149856,0.19536,102390.0,102380.0,0.64093123]
[1738175150054,0.55616,102390.0,102380.0,0.64093123]
[1738175150361,0.19536,102390.0,102380.0,0.92800556]
[1738175151452,0.55616,102390.0,102380.0,0.73262656]
[1738175153057,0.55616,102390.0,102380.0,0.09169533]
[1738175155762,0.19536,102390.0,102380.0,0.29708778]
[1738175156059,0.19536,102390.0,102380.0,0.10170878]
[1738175156446,0.19536,102390.0,102380.0,0.18830878]
[1738175156846,0.19536,102390.0,102380.0,0.74548778]
[1738175157051,0.00014685,102400.0,102380.0,0.74548778]
[1738175157257,0.19549585,102400.0,102390.0,0.82165533]
[1738175157760,0.19549585,102400.0,102390.0,0.46085533]
[1738175158355,0.19549585,102400.0,102390.0,0.26549533]
[1738175159154,0.64799118,102400.0,102390.0,0.1738]
[1738175159463,0.55629585,102400.0,102390.0,0.1738]
[1738175160061,0.19549585,102400.0,102390.0,0.1738]
[1738175160567,0.19549585,102400.0,102390.0,0.46185533]
[1738175161158,0.19549585,102400.0,102390.0,0.37016]
[1738175161670,0.19549585,102400.0,102390.0,0.1748]
[1738175161867,0.55629585,102400.0,102390.0,0.1748]
[1738175162262,0.19549585,102400.0,102390.0,0.1748]
[1738175162878,0.55629585,102400.0,102390.0,0.1748]
[1738175163062,0.55629585,102400.0,102390.0,0.0889]
[1738175163268,0.64799118,102400.0,102390.0,0.001]
[1738175163462,0.73379118,102400.0,102390.0,0.001]
[1738175165170,0.19536,102390.0,102380.0,0.01001345]
[1738175165364,0.195379,102380.0,102370.0,0.64783685]
[1738175165571,0.195379,102380.0,102370.0,0.73953218]
[1738175166565,0.195379,102380.0,102370.0,0.7494153]
[1738175166766,0.195379,102380.0,102370.0,0.7504153]
[1738175166975,0.195379,102380.0,102370.0,0.29791997]
[1738175167269,0.195379,102380.0,102370.0,0.01102997]
[1738175167467,0.64787433,102380.0,102370.0,0.00114685]
[1738175168272,0.556179,102380.0,102370.0,0.00114685]
[1738175168464,0.64787433,102380.0,102370.0,0.00114685]
[1738175168668,0.73947433,102380.0,102370.0,0.00114685]
[1738175170976,0.74952091,102380.0,102370.0,0.00114685]
[1738175172684,0.556179,102380.0,102370.0,0.28824018]
[1738175172873,0.195375,102390.0,102380.0,0.195379]
[1738175173078,0.195375,102390.0,102380.0,0.55817433]
[1738175173278,0.00014685,102400.0,102390.0,0.19536]
[1738175173486,0.00014685,102400.0,102390.0,0.28705533]
[1738175174686,0.116169,102400.0,102390.0,0.28705533]
[1738175175276,0.116169,102400.0,102390.0,0.32705533]
[1738175176078,0.116169,102400.0,102390.0,0.32805533]
[1738175176790,0.116169,102400.0,102390.0,0.78055066]
[1738175177490,0.11323004,102410.0,102400.0,0.195341]
[1738175177787,0.11323004,102410.0,102400.0,0.87783633]
[1738175177990,0.17403323,102420.0,102410.0,0.195322]
[1738175178185,0.17403323,102420.0,102410.0,1.01931733]
[1738175178589,0.20318562,102430.0,102420.0,0.195303]
[1738175178779,0.20318562,102430.0,102420.0,1.00053366]
[1738175178780,0.16101307,102430.0,102420.0,1.00053366]
[1738175179185,0.11638544,102430.0,102420.0,1.00053366]
[1738175180291,0.11738544,102430.0,102420.0,1.00053366]
[1738175181876,0.11738544,102430.0,102420.0,1.08803366]
[1738175183691,0.00146485,102440.0,102430.0,0.195284]
[1738175183889,0.00146485,102440.0,102430.0,0.64777933]
[1738175184993,0.00146485,102440.0,102430.0,0.64877933]
[1738175185584,0.00346485,102440.0,102430.0,0.64877933]
[1738175185992,0.00346485,102440.0,102430.0,0.557084]
[1738175186194,0.00346485,102440.0,102430.0,0.196284]
[1738175186395,0.36426485,102440.0,102430.0,0.196284]
[1738175186781,0.4511,102440.0,102430.0,0.196284]
[1738175187191,0.73806033,102440.0,102430.0,0.196284]
[1738175187392,0.1756,102440.0,102430.0,0.196284]
[1738175187591,0.002,102440.0,102430.0,0.69877933]
[1738175190691,0.002,102440.0,102430.0,0.33797933]
[1738175190897,0.3628,102440.0,102430.0,0.33797933]
[1738175191791,0.3628,102440.0,102430.0,0.28797933]
[1738175193896,0.558065,102440.0,102430.0,0.28797933]
[1738175195295,0.002,102440.0,102430.0,0.32797933]
[1738175198604,0.002,102440.0,102430.0,0.68877933]
[1738175201301,0.002,102440.0,102430.0,0.32797933]
[1738175201502,0.002,102440.0,102430.0,0.28797933]
[1738175201699,0.197265,102440.0,102430.0,0.28797933]
[1738175202090,0.284665,102440.0,102430.0,0.001]
[1738175202301,0.73716033,102440.0,102430.0,0.001]
[1738175202497,0.645465,102440.0,102430.0,0.001]
[1738175202702,0.645465,102440.0,102430.0,0.09269533]
[1738175203100,0.645465,102440.0,102430.0,0.28797933]
[1738175205794,0.645465,102440.0,102430.0,0.196284]
[1738175206507,0.73716033,102440.0,102430.0,0.196284]
[1738175207404,0.645465,102440.0,102430.0,0.196284]
[1738175209508,0.73228006,102440.0,102430.0,0.196284]
[1738175211707,0.81998006,102440.0,102430.0,0.196284]
[1738175224512,0.81998006,102440.0,102430.0,0.001]
[1738175224908,0.91167539,102440.0,102430.0,0.001]
[1738175225103,0.71641039,102440.0,102420.0,0.52558482]
[1738175225319,0.76975116,102430.0,102420.0,0.52558482]
[1738175225519,0.74157933,102430.0,102420.0,0.52558482]
[1738175226113,0.195303,102420.0,102410.0,0.66354275]
[1738175226313,0.73589833,102420.0,102410.0,0.66354275]
[1738175227220,0.644203,102420.0,102410.0,0.85886475]
[1738175227624,0.73589833,102420.0,102410.0,0.85886475]
[1738175228108,0.644203,102420.0,102410.0,0.85886475]
[1738175228518,0.73101806,102420.0,102410.0,0.195322]
[1738175230819,0.74059912,102420.0,102410.0,0.195322]
[1738175233623,0.83229445,102420.0,102410.0,0.195322]
[1738175234125,0.63699145,102420.0,102400.0,0.1015409]
[1738175234324,0.556122,102410.0,102400.0,0.20518057]
[1738175237824,0.556122,102410.0,102400.0,0.20618057]
[1738175238022,0.73791733,102410.0,102400.0,0.00114685]
[1738175238514,0.73791733,102410.0,102400.0,0.19648785]
[1738175238717,0.646222,102410.0,102400.0,0.19648785]
[1738175240124,0.73791733,102410.0,102400.0,0.19648785]
[1738175241220,0.646222,102410.0,102400.0,0.19648785]
[1738175241417,0.556122,102410.0,102400.0,0.28818318]
[1738175241729,0.556122,102410.0,102400.0,0.37948318]
[1738175244129,0.556122,102410.0,102400.0,0.28778785]
[1738175246829,0.556122,102410.0,102400.0,0.00114685]
[1738175246830,0.64781733,102410.0,102400.0,0.00114685]
[1738175247038,0.556122,102410.0,102400.0,0.00114685]
[1738175247230,0.556122,102410.0,102400.0,0.19648785]
[1738175249440,0.556122,102410.0,102400.0,0.28818318]
[1738175249631,0.556122,102410.0,102400.0,0.19648785]
[1738175250025,0.556122,102410.0,102400.0,0.33818318]
[1738175250026,0.195322,102410.0,102400.0,0.33818318]
[1738175250231,0.84722311,102420.0,102410.0,0.195322]
[1738175250430,0.20300911,102420.0,102410.0,0.79191733]
[1738175250736,0.20300911,102420.0,102410.0,0.88341733]
[1738175253140,0.19543085,102430.0,102420.0,0.195303]
[1738175253641,0.19543085,102430.0,102420.0,0.28699833]
[1738175254137,0.00014685,102430.0,102420.0,0.32699833]
[1738175254343,0.00114685,102430.0,102420.0,0.32699833]
[1738175254538,0.00114685,102430.0,102420.0,0.42139833]
[1738175255143,0.00114685,102430.0,102420.0,0.38139833]
[1738175255843,0.00114685,102430.0,102420.0,0.43139833]
[1738175256240,0.19643085,102430.0,102420.0,0.38139833]
[1738175258139,0.00114685,102430.0,102420.0,0.43139833]
[1738175258641,0.00114685,102430.0,102420.0,0.38139833]
[1738175258842,0.00114685,102430.0,102420.0,0.43139833]
[1738175259251,0.00114685,102430.0,102420.0,0.38139833]
[1738175260549,0.00114685,102430.0,102420.0,0.42139833]
[1738175260848,0.00114685,102430.0,102420.0,0.87389366]
[1738175264048,0.750238,102460.0,102450.0,0.195246]
[1738175264255,0.750238,102460.0,102450.0,0.28694133]
[1738175264948,0.750238,102460.0,102450.0,0.195246]
[1738175265458,0.195246,102450.0,102440.0,0.19540985]
[1738175265651,0.74194133,102450.0,102440.0,0.00014685]
[1738175265852,0.650246,102450.0,102440.0,0.00014685]
[1738175266663,0.653246,102450.0,102440.0,0.00014685]
[1738175266850,0.653246,102450.0,102440.0,0.28710718]
[1738175267048,0.653246,102450.0,102440.0,0.28810718]
[1738175268363,0.0972,102450.0,102440.0,0.28810718]
[1738175268950,0.458,102450.0,102440.0,0.28810718]
[1738175269162,0.653246,102450.0,102440.0,0.28810718]
[1738175271064,0.653246,102450.0,102440.0,0.29772746]
[1738175271450,0.292446,102450.0,102440.0,0.33772746]
[1738175272060,0.292446,102450.0,102440.0,0.29772746]
[1738175272458,0.653246,102450.0,102440.0,0.29772746]
[1738175274266,0.292446,102450.0,102440.0,0.29772746]
[1738175274869,0.653246,102450.0,102440.0,0.29772746]
[1738175277961,0.0972,102450.0,102440.0,0.70852746]
[1738175278172,0.18521506,102460.0,102450.0,0.195246]
[1738175278365,0.18521506,102460.0,102450.0,1.02873666]
[1738175278673,0.0968979,102470.0,102450.0,0.83349066]
[1738175278970,0.0968979,102470.0,102460.0,0.28692233]
[1738175278971,9.79e-05,102470.0,102460.0,0.28692233]
[1738175279162,9.79e-05,102470.0,102460.0,0.38692233]
[1738175280064,9.79e-05,102470.0,102460.0,0.48532233]
[1738175280262,9.79e-05,102470.0,102460.0,0.48632233]
[1738175280466,9.79e-05,102470.0,102460.0,0.84712233]
[1738175280769,0.19897,102490.0,102460.0,0.74359066]
[1738175280970,0.19897,102490.0,102480.0,0.28688433]
[1738175281763,0.55977,102490.0,102480.0,0.28688433]
[1738175281962,0.56177,102490.0,102480.0,0.28688433]
[1738175282768,0.82142318,102490.0,102480.0,0.28688433]
[1738175283276,1.01659318,102490.0,102480.0,0.28688433]
[1738175286761,0.65579318,102490.0,102480.0,0.29684323]
[1738175287160,1.01659318,102490.0,102480.0,0.29684323]
[1738175287366,1.01659318,102490.0,102480.0,0.0099589]
[1738175287666,1.01659318,102490.0,102470.0,0.38223918]
[1738175287667,0.195189,102480.0,102470.0,0.38223918]
[1738175287867,0.555989,102480.0,102470.0,0.38223918]
[1738175288868,0.555989,102480.0,102470.0,0.38323918]
[1738175289267,0.555989,102480.0,102470.0,0.28803918]
[1738175289468,0.647489,102480.0,102470.0,0.28803918]
[1738175290275,0.647489,102480.0,102470.0,0.29777488]
[1738175292479,0.286689,102480.0,102470.0,0.29777488]
[1738175293079,0.647489,102480.0,102470.0,0.29777488]
[1738175293270,0.647489,102480.0,102470.0,0.01088255]
[1738175293673,0.647489,102480.0,102470.0,0.29778588]
[1738175297081,0.286689,102480.0,102470.0,0.29778588]
[1738175297483,0.195189,102480.0,102470.0,0.29778588]
[1738175297980,0.3608,102480.0,102470.0,0.10257788]
[1738175298187,0.555989,102480.0,102470.0,0.29777588]
[1738175298879,0.555989,102480.0,102470.0,0.40777588]
[1738175299087,0.846654,102490.0,102480.0,0.195189]
[1738175299282,0.846654,102490.0,102480.0,0.28688433]
[1738175299473,0.754954,102490.0,102480.0,0.28688433]
[1738175300881,0.394154,102490.0,102480.0,0.28688433]
[1738175301182,0.19897,102490.0,102480.0,0.32688433]
[1738175301381,0.10217,102490.0,102480.0,0.41857966]
[1738175301586,0.10217,102490.0,102480.0,0.32688433]
[1738175302376,0.10217,102490.0,102480.0,0.28688433]
[1738175302686,0.29734,102490.0,102480.0,0.28688433]
[1738175303288,0.38904,102490.0,102480.0,0.28688433]
[1738175303484,0.19387,102490.0,102480.0,0.33688433]
[1738175303985,0.38904,102490.0,102480.0,0.28688433]
[1738175305373,0.19387,102490.0,102480.0,0.68768433]
[1738175305892,0.19387,102490.0,102480.0,0.77937966]
[1738175306392,0.19387,102490.0,102480.0,0.68768433]
[1738175306784,0.19387,102490.0,102480.0,0.32688433]
[1738175306980,0.38904,102490.0,102480.0,0.28688433]
[1738175307196,0.74984,102490.0,102480.0,0.28688433]
[1738175307885,0.38904,102490.0,102480.0,0.28688433]
[1738175308289,0.74984,102490.0,102480.0,0.28688433]
[1738175308891,0.38904,102490.0,102480.0,0.28688433]
[1738175309889,0.74984,102490.0,102480.0,0.28688433]
[1738175310284,0.38904,102490.0,102480.0,0.28688433]
[1738175310491,0.74984,102490.0,102480.0,0.28688433]
[1738175310892,0.74984,102490.0,102480.0,0.34688433]
[1738175311380,0.46297,102490.0,102480.0,0.43857966]
[1738175311581,0.00877,102490.0,102480.0,0.79937966]
[1738175312399,0.09582338,102490.0,102480.0,1.03221542]
[1738175316992,0.00877,102490.0,102480.0,1.44164903]
[1738175319006,0.1,102500.0,102490.0,0.19517]
[1738175319209,0.1,102500.0,102490.0,1.20652533]
[1738175319811,0.18395338,102510.0,102490.0,1.10305066]
[1738175320009,0.18395338,102510.0,102500.0,0.73934166]
[1738175320203,0.18395338,102510.0,102500.0,0.84764633]
[1738175320403,0.18395338,102510.0,102500.0,0.93934166]
[1738175320608,0.18395338,102510.0,102500.0,0.84764633]
[1738175320809,0.0969,102510.0,102500.0,0.84764633]
[1738175322809,0.08851725,102520.0,102500.0,0.65249533]
[1738175323005,0.08851725,102520.0,102510.0,0.28682733]
[1738175324230,0.00146387,102520.0,102510.0,0.33682733]
[1738175324417,0.00246387,102520.0,102510.0,0.33682733]
[1738175324724,0.00246387,102520.0,102510.0,0.69762733]
[1738175325126,0.00146387,102520.0,102510.0,0.69762733]
[1738175325326,0.00246387,102520.0,102510.0,0.69762733]
[1738175326132,0.00246387,102520.0,102510.0,0.78932266]
[1738175326427,0.001,102520.0,102510.0,0.88312266]
[1738175327923,0.001,102520.0,102510.0,0.98292266]
[1738175328920,0.001,102520.0,102510.0,1.07892266]
[1738175329120,0.2019,102530.0,102520.0,0.195113]
[1738175329317,0.2019,102530.0,102520.0,0.84760833]
[1738175329518,0.1005,102530.0,102520.0,0.84760833]
[1738175329728,0.20334368,102540.0,102530.0,0.195094]
[1738175329923,0.20334368,102540.0,102530.0,0.85618933]
[1738175330923,0.20334368,102540.0,102530.0,0.85718933]
[1738175331632,0.93401838,102550.0,102530.0,0.74718933]
[1738175331833,0.93401838,102550.0,102540.0,0.28677033]
[1738175333823,0.93401838,102550.0,102540.0,0.28777033]
[1738175334431,0.93801838,102550.0,102540.0,0.28777033]
[1738175335135,0.850965,102550.0,102540.0,0.28777033]
[1738175336132,0.2951,102550.0,102540.0,0.28777033]
[1738175336324,0.2951,102550.0,102540.0,0.79987555]
[1738175338127,0.004,102550.0,102540.0,0.79987555]
[1738175338327,0.20334368,102560.0,102540.0,0.71304818]
[1738175338533,0.83857338,102570.0,102560.0,0.195036]
[1738175338836,0.83857338,102570.0,102560.0,0.28673133]
[1738175339430,0.64355338,102570.0,102560.0,0.28673133]
[1738175339933,0.64555338,102570.0,102560.0,0.28673133]
[1738175340535,0.84057038,102570.0,102560.0,0.09269533]
[1738175341932,0.84057038,102570.0,102560.0,0.10238905]
[1738175342127,0.84057038,102570.0,102560.0,0.29742505]
[1738175342530,0.28475338,102570.0,102560.0,0.29742505]
[1738175342740,0.64555338,102570.0,102560.0,0.29742505]
[1738175342942,0.5585,102570.0,102560.0,0.29742505]
[1738175344442,0.1977,102570.0,102560.0,0.29742505]
[1738175345241,0.5585,102570.0,102560.0,0.29742505]
[1738175345941,0.753517,102570.0,102560.0,0.29742505]
[1738175352448,0.84521233,102570.0,102560.0,0.01069372]
[1738175352644,0.195037,102560.0,102550.0,0.00014685]
[1738175352841,0.650837,102560.0,102550.0,0.00014685]
[1738175354046,0.650837,102560.0,102550.0,0.00989731]
[1738175354243,0.650837,102560.0,102550.0,0.00014685]
[1738175355653,0.74253233,102560.0,102550.0,0.00014685]
[1738175355953,0.650837,102560.0,102550.0,0.00014685]
[1738175357643,0.85418068,102560.0,102550.0,0.00014685]
[1738175358038,1.21498068,102560.0,102550.0,0.00014685]
[1738175360655,0.19509896,102550.0,102540.0,0.29667486]
[1738175360856,0.65589896,102550.0,102540.0,0.29667486]
[1738175361763,0.55589896,102550.0,102540.0,0.29667486]
[1738175362955,0.55589896,102550.0,102540.0,0.20497953]
[1738175363158,0.65679896,102550.0,102540.0,0.00991853]
[1738175363358,0.65679896,102550.0,102540.0,0.001]
[1738175364446,0.74418867,102550.0,102540.0,0.196075]
[1738175364649,0.74418867,102550.0,102540.0,0.28777033]
[1738175367358,0.08743267,102550.0,102540.0,0.40777033]
[1738175367561,0.20372297,102550.0,102540.0,0.59416566]
[1738175367749,0.20372297,102550.0,102540.0,1.05126566]
[1738175368755,0.20372297,102550.0,102540.0,1.11082566]
[1738175369259,0.14550973,102560.0,102550.0,0.195056]
[1738175369452,0.17443546,102570.0,102550.0,0.75329533]
[1738175369651,0.17443546,102570.0,102560.0,0.84193133]
[1738175369855,0.17443546,102570.0,102560.0,0.96193133]
[1738175370164,0.17443546,102570.0,102560.0,0.48113133]
[1738175370758,0.17443546,102570.0,102560.0,0.48213133]
[1738175371061,0.36945246,102570.0,102560.0,0.196036]
[1738175371263,0.56805246,102570.0,102560.0,0.196036]
[1738175371466,0.393617,102570.0,102560.0,0.196036]
[1738175371666,0.393617,102570.0,102560.0,0.28773133]
[1738175372863,0.394617,102570.0,102560.0,0.28773133]
[1738175376671,0.394617,102570.0,102560.0,0.30008057]
[1738175377970,0.394617,102570.0,102560.0,0.34008057]
[1738175378871,0.001,102570.0,102560.0,0.70088057]
[1738175379070,0.001,102570.0,102560.0,0.90518057]
[1738175379370,0.95502391,102590.0,102580.0,0.194998]
[1738175379569,0.95502391,102590.0,102580.0,0.28669333]
[1738175380565,0.95602391,102590.0,102580.0,0.28669333]
[1738175380771,0.94102391,102590.0,102580.0,0.28669333]
[1738175381770,0.74603391,102590.0,102580.0,0.33669333]
[1738175381975,0.74603391,102590.0,102580.0,0.28669333]
[1738175382474,0.94101291,102590.0,102580.0,0.28669333]
[1738175382676,0.58021291,102590.0,102580.0,0.28669333]
[1738175382877,0.40577745,102590.0,102580.0,0.28669333]
[1738175384476,0.1885,102590.0,102580.0,0.28669333]
[1738175385369,0.1885,102590.0,102580.0,0.29897807]
[1738175387681,0.1885,102590.0,102580.0,0.34897807]
[1738175387879,0.0961,102590.0,102580.0,0.70977807]
[1738175388086,0.0961,102590.0,102580.0,0.81047807]
[1738175388275,0.001,102590.0,102580.0,0.81047807]
[1738175388773,0.1,102600.0,102580.0,0.61548007]
[1738175388971,0.46683101,102620.0,102590.0,0.45249533]
[1738175389172,0.37559801,102620.0,102610.0,0.28663633]
[1738175389786,0.93132001,102620.0,102610.0,0.28663633]
[1738175390080,0.194941,102610.0,102600.0,0.0935]
[1738175390281,0.555741,102610.0,102600.0,0.194958]
[1738175390476,0.656341,102610.0,102600.0,0.194958]
[1738175390873,0.656341,102610.0,102600.0,0.28665333]
[1738175392885,0.656341,102610.0,102600.0,0.29863932]
[1738175393688,0.656341,102610.0,102600.0,0.20694399]
[1738175395683,0.656341,102610.0,102600.0,0.29863932]
[1738175395875,0.656341,102610.0,102600.0,0.20694399]
[1738175396281,0.656341,102610.0,102600.0,0.29863932]
[1738175397482,0.656341,102610.0,102600.0,0.20694399]
[1738175398688,0.656341,102610.0,102600.0,0.29863932]
[1738175400287,0.295541,102610.0,102600.0,0.28665333]
[1738175400594,0.295541,102610.0,102600.0,0.194958]
[1738175400991,0.656341,102610.0,102600.0,0.194958]
[1738175401291,0.656341,102610.0,102600.0,0.28665333]
[1738175401587,0.656341,102610.0,102600.0,0.194958]
[1738175401985,0.656341,102610.0,102600.0,0.28665333]
[1738175402997,0.295541,102610.0,102600.0,0.70745333]
[1738175403194,0.1997,102620.0,102610.0,0.194941]
[1738175403392,0.33221713,102630.0,102610.0,0.67249533]
[1738175403584,0.33221713,102630.0,102620.0,0.73941733]
[1738175403790,0.33221713,102630.0,102620.0,0.84941733]
[1738175404289,0.33221713,102630.0,102620.0,0.37861733]
[1738175404497,0.52712013,102630.0,102620.0,0.37861733]
[1738175404693,0.194922,102620.0,102610.0,0.19508585]
[1738175404991,0.292822,102620.0,102610.0,0.19508585]
[1738175405198,0.388222,102620.0,102610.0,0.28678118]
[1738175406001,0.388222,102620.0,102610.0,0.28778118]
[1738175406692,0.1933,102620.0,102610.0,0.28778118]
[1738175406900,0.0979,102620.0,102610.0,0.68858118]
[1738175407094,0.42681713,102630.0,102620.0,0.194922]
[1738175407396,0.33221713,102630.0,102620.0,0.37831733]
[1738175407892,0.52712013,102630.0,102620.0,0.37831733]
[1738175408789,0.20713313,102630.0,102620.0,0.37831733]
[1738175408986,0.01223013,102630.0,102620.0,0.73911733]
[1738175409299,0.89600778,102640.0,102620.0,0.73911733]
[1738175409491,0.194903,102630.0,102620.0,0.37831733]
[1738175410197,0.555703,102630.0,102620.0,0.37831733]
[1738175410788,0.194903,102630.0,102620.0,0.37831733]
[1738175411295,0.194922,102620.0,102610.0,0.20702032]
[1738175411489,0.384722,102620.0,102610.0,0.20702032]
[1738175411691,0.745522,102620.0,102610.0,0.20702032]
[1738175412099,0.745522,102620.0,102610.0,0.29871565]
[1738175412700,0.384722,102620.0,102610.0,0.29971565]
[1738175412890,0.1898,102620.0,102610.0,0.29971565]
[1738175413199,0.36226224,102640.0,102610.0,0.61448165]
[1738175413497,0.09616224,102640.0,102630.0,0.64739833]
[1738175413692,0.09616224,102640.0,102630.0,0.76739833]
[1738175413897,0.09616224,102640.0,102630.0,0.86629833]
[1738175414492,0.415087,102650.0,102630.0,0.76309066]
[1738175414704,0.415087,102650.0,102640.0,0.28657933]
[1738175414889,0.415087,102650.0,102640.0,0.64737933]
[1738175415089,0.319987,102650.0,102640.0,0.64737933]
[1738175415290,0.49414304,102670.0,102640.0,0.67754055]
[1738175415490,0.85494304,102670.0,102660.0,0.28654233]
[1738175416200,0.8261313,102670.0,102660.0,0.28654233]
[1738175416398,0.8261313,102670.0,102660.0,0.194847]
[1738175416796,0.4653313,102670.0,102660.0,0.194847]
[1738175416997,0.8261313,102670.0,102660.0,0.194847]
[1738175417698,0.4653313,102670.0,102660.0,0.194847]
[1738175418010,0.8261313,102670.0,102660.0,0.194847]
[1738175418199,0.72299163,102670.0,102650.0,0.19500513]
[1738175418399,0.555647,102660.0,102650.0,0.00014613]
[1738175418607,0.64734233,102660.0,102650.0,0.00014613]
[1738175420694,0.64734233,102660.0,102650.0,0.19501113]
[1738175422597,0.28654233,102660.0,102650.0,0.19501113]
[1738175422811,0.290635,102670.0,102660.0,0.194847]
[1738175423106,0.194835,102670.0,102660.0,0.28654233]
[1738175423807,0.194835,102670.0,102660.0,0.194847]
[1738175424508,0.555635,102670.0,102660.0,0.194847]
[1738175425204,0.194835,102670.0,102660.0,0.194847]
[1738175426807,0.555635,102670.0,102660.0,0.194847]
[1738175427409,0.555635,102670.0,102660.0,0.293747]
[1738175427612,0.194835,102670.0,102660.0,0.293747]
[1738175428112,0.194835,102670.0,102660.0,0.38544233]
[1738175428310,0.555635,102670.0,102660.0,0.38544233]
[1738175429103,0.194835,102670.0,102660.0,0.38544233]
[1738175429304,0.555635,102670.0,102660.0,0.38544233]
[1738175429505,0.194835,102670.0,102660.0,0.38544233]
[1738175429798,0.555635,102670.0,102660.0,0.38544233]
[1738175430200,0.194847,102660.0,102650.0,0.00014613]
[1738175430413,0.555647,102660.0,102650.0,0.28670746]